{"text_format":"1","workbook":"xlsx","n_sheets":11,"sheets":["Menu","MIDIA","PRODUTO","ORÇAMENTO","CUSTOS","RECEITAS","CRONOGRAMA","RELAT_MIDIAS","RELAT_INDIV","Dash","Instruções"],"not_rendered":{"charts":5,"images":13,"macros":1,"external_links":0,"defined_names":31,"comments":0,"pivot_tables":4},"unopened":[],"bounds":{"document_bytes":16777216,"sheet_cells":100000,"rows_first":2000,"rows_last":500,"rows_between":2000,"halvings":0,"cell_chars":16384,"cell_head_chars":4096},"cells_cut":0,"cells_raw":0,"read":"whole","date_system":"1900"}

{"sheet":"Menu","index":0,"n_rows":0,"n_cols":0,"rows_kept":0,"cut":false,"hidden":false,"merged":[]}

{"sheet":"MIDIA","index":1,"n_rows":19,"n_cols":6,"rows_kept":19,"cut":false,"hidden":false,"merged":[[12,1,13,1],[12,3,13,3],[12,4,13,4],[12,5,13,5],[11,3,11,5]]}
[]
[]
[]
[]
[]
[]
[]
[]
[]
[]
[]
[null,"Cadastro de Tipos de Mídias\nInsira tipos de mídias usadas em sua empresa",null,"Cadastro de Mídias Utilizadas\nInsira as mídias usadas em sua empresa"]
[null,"Tipo de Mídia",null,"Mídia","Tipo de Mídia","Observações"]
[]
[null,"Online",null,"Redes Sociais","Online"]
[null,"Offline",null,"Revistas","Offline"]
[null,null,null,"Jornais","Offline"]
[null,null,null,"Loja Física","Offline"]
[null,null,null,"Site","Online"]

{"sheet":"PRODUTO","index":2,"n_rows":46,"n_cols":8,"rows_kept":46,"cut":false,"hidden":false,"merged":[[11,1,11,3],[11,4,11,7],[23,6,23,7],[13,4,13,5],[15,4,15,5],[17,4,17,5],[19,4,19,5],[21,4,21,5],[23,4,23,5],[13,6,13,7],[15,6,15,7],[17,6,17,7],[19,6,19,7],[21,6,21,7],[13,2,13,3],[15,2,15,3],[45,1,45,7],[37,1,37,7],[38,1,38,7],[39,1,39,7],[40,1,40,7],[41,1,41,7],[42,1,42,7],[43,1,43,7],[17,2,17,3],[19,2,19,3],[21,2,21,3],[23,2,23,3],[44,1,44,7],[27,6,27,7],[27,4,27,5],[25,1,25,7]]}
[]
[]
[]
[]
[]
[]
[]
[]
[]
[]
[]
[null,"Produtos\nInsira as informações relacionadas aos seus produtos.",null,null,"Praça - Localização e Canais\nInsira as informações relacionadas a Localização e aos Canais de Venda"]
[]
[null,"O que o cliente espera dos seus produtos / serviços?","Sorvetes gostosos e deliciosos.",null,"Em quais locais (ou tipo de mídia) os clientes procuram seus produtos?",null,"Internet (site, redes sociais)"]
[]
[null,"Qual a imagem o produto/serviço quer passar?","Refrescancia e saborosos.",null,"Em qual cidade e bairro sua empresa está localizada?",null,"Pederneiras-SP, Bairro Euclydes Pinheiro"]
[]
[null,"Quais atributos eles precisam ter?","Sorvetes gelados e saborosos.",null,"Como você pode acessar canais de distribuição?",null,"Fazendo parcerias."]
[]
[null,"Como pretende trabalhar essa marca?","Disponibilizando canais de vendas online e facilidade na entrega ao cliente.",null,"Qual o seu foco geográfico (internacional, nacional, regional, estadual, municipal, de bairro, local)?",null,"Nacional."]
[]
[null,"Como eles serão usados pelo cliente?","Serão apreciados em suas sobremesas.",null,"Quais são os seus canais de venda?",null,"Internet"]
[]
[null,"Quais são os principais concorrentes do seus produtos/serviços?","Sorveterias diversas.",null,"Onde seus concorrentes estão?",null,"Sudeste do país."]
[]
[null,"Preço\nInsira as suas estratégias relacionadas aos preços dos seus produtos/serviços."]
[]
[null,"Sua estratégia de vendas visa grande demanda?","Concordo totalmente",{"$f":"IF(C28=\"\",\"\",IF(C28=\"Concordo totalmente\",5,IF(C28=\"Concordo parcialmente\",4,IF(C28=\"Não concordo nem discordo\",3,IF(C28=\"Discordo parcialmente\",2,1)))))","v":5},"Estratégia de Preço Definida foi:",null,{"$f":"IF(SUM(D28,D30,D32,D34,D36)=0,\"\",IF(AND(D36>3,D32>3,D30<3),\"Estratégia Premium\",IF(AND(D36>3,D34>3,D30<3),\"Estratégia Valor Alto\",IF(AND(D36>3,D34>3,D30>3),\"Estratégia Valor Supremo\",IF(AND(D36<=3,D34>3,D30<3),\"Estratégia Alto Preço\",IF(AND(D32>3,D30=3,D28<3),\"Estratégia Médio Preço\",IF(AND(D30>3,D36<=3,D34>3),\"Estratégia Valor Médio\",IF(AND(D34>3,D36<3,D30>3),\"Estratégia de Desconto\",IF(AND(D36<3,D32<3,D30<3),\"Estratégia de Falsa Economia\",IF(AND(D36<3,D32<3,D30>3),\"Estratégia de Economia\",\"\"))))))))))","v":"Estratégia Valor Alto"}]
[]
[null,"O cliente é fortemente influenciado pelo preço?","Discordo parcialmente",{"$f":"IF(C30=\"\",\"\",IF(C30=\"Concordo totalmente\",5,IF(C30=\"Concordo parcialmente\",4,IF(C30=\"Não concordo nem discordo\",3,IF(C30=\"Discordo parcialmente\",2,1)))))","v":2},"Visão","Preço Alto","Preço Médio","Preço Baixo"]
[]
[null,"O cliente valoriza a qualidade do produto em detrimento do preço?","Discordo totalmente",{"$f":"IF(C32=\"\",\"\",IF(C32=\"Concordo totalmente\",5,IF(C32=\"Concordo parcialmente\",4,IF(C32=\"Não concordo nem discordo\",3,IF(C32=\"Discordo parcialmente\",2,1)))))","v":1},"Qualidade Alta","Estratégia Premium","Estratégia Valor Alto","Estratégia Valor Supremo"]
[]
[null,"Sua estratégia visa acelerar a penetração no mercado?","Concordo parcialmente",{"$f":"IF(C34=\"\",\"\",IF(C34=\"Concordo totalmente\",5,IF(C34=\"Concordo parcialmente\",4,IF(C34=\"Não concordo nem discordo\",3,IF(C34=\"Discordo parcialmente\",2,1)))))","v":4},"Qualidade Média","Estratégia Alto Preço","Estratégia Médio Preço","Estratégia Valor Médio"]
[]
[null,"Sua linha de produtos/serviços é considerada Premium?","Concordo parcialmente",{"$f":"IF(C36=\"\",\"\",IF(C36=\"Concordo totalmente\",5,IF(C36=\"Concordo parcialmente\",4,IF(C36=\"Não concordo nem discordo\",3,IF(C36=\"Discordo parcialmente\",2,1)))))","v":4},"Qualidade Baixa","Estratégia de Desconto","Estratégia de Falsa Economia","Estratégia de Economia"]
[]
[null,"Estratégia Premium - Para produtos de alta qualidade. Nesse caso, pode-se praticar um preço alto, visando atingir a faixa alta do mercado com uma imagem de prestigio no mercado."]
[null,"Estratégia de Valor Alto - Para produtos de alta qualidade. Pratica-se um preço médio tentando obter uma rápida penetração no mercado."]
[null,"Estratégia de Valor Supremo - Produto de alta qualidade a preço baixo. Recomendado para se obter uma rápida introdução no mercado."]
[null,"Estratégia de Alto Preço - Produto de qualidade média e preço alto. É uma estratégia que valoriza o produto através do preço psicológico, visando lucratividade a curto prazo."]
[null,"Estratégia de Médio Preço - Preço compatível com a qualidade do produto, objetivando uma participação aceitável no mercado."]
[null,"Estratégia de Valor Médio - Produto de média qualidade a preço baixo. Recomendado para se obter uma rápida introdução no mercado."]
[null,"Estratégia de Desconto - Preço alto com qualidade baixa. Tem-se uma vantagem inicial e há uma retirada rápida do mercado."]
[null,"Estratégia de Falsa Economia - Preço médio para um produto de baixa qualidade. Pose-se com essa estratégia tirar vantagem da marca ou de uma falsa imagem criada."]
[null,"Estratégia de Economia - Preços baixos e qualidade baixa. Com essa estratégia procura-se vendes grandes quantidades do produto."]

{"sheet":"ORÇAMENTO","index":3,"n_rows":30,"n_cols":27,"rows_kept":30,"cut":false,"hidden":false,"merged":[[11,1,11,14]]}
[]
[]
[]
[]
[]
[]
[]
[]
[]
[]
[]
[null,"Promoção - Orçamento\nInsira os orçamentos previstos para cada mídia cadastrada."]
[]
[null,"Orçamento","Janeiro","Fevereiro","Março","Abril","Maio","Junho","Julho","Agosto","Setembro","Outubro","Novembro","Dezembro","Total"]
[null,{"$f":"IF(MIDIA!D15=\"\",\"\",MIDIA!D15)","v":"Redes Sociais"},100,200,150,150,100,100,100,100,100,100,100,100,{"$f":"SUM(C15:N15)","v":1400},null,null,null,null,null,null,null,null,null,null,null,{"$f":"IFERROR(VLOOKUP(B15,MIDIA!$D$15:$E$30,2,0),\"\")","v":"Online"}]
[null,{"$f":"IF(MIDIA!D16=\"\",\"\",MIDIA!D16)","v":"Revistas"},50,50,50,50,50,50,50,50,50,50,50,50,{"$f":"SUM(C16:N16)","v":600},null,null,null,null,null,null,null,null,null,null,null,{"$f":"IFERROR(VLOOKUP(B16,MIDIA!$D$15:$E$30,2,0),\"\")","v":"Offline"}]
[null,{"$f":"IF(MIDIA!D17=\"\",\"\",MIDIA!D17)","v":"Jornais"},30,30,30,30,30,30,30,30,30,30,30,30,360,null,null,null,null,null,null,null,null,null,null,null,{"$f":"IFERROR(VLOOKUP(B17,MIDIA!$D$15:$E$30,2,0),\"\")","v":"Offline"}]
[null,{"$f":"IF(MIDIA!D18=\"\",\"\",MIDIA!D18)","v":"Loja Física"},300,300,300,300,300,300,300,300,300,300,300,300,3600,null,null,null,null,null,null,null,null,null,null,null,{"$f":"IFERROR(VLOOKUP(B18,MIDIA!$D$15:$E$30,2,0),\"\")","v":"Offline"}]
[null,{"$f":"IF(MIDIA!D19=\"\",\"\",MIDIA!D19)","v":"Site"},150,150,150,150,150,150,150,150,150,150,150,150,1800,null,null,null,null,null,null,null,null,null,null,null,{"$f":"IFERROR(VLOOKUP(B19,MIDIA!$D$15:$E$30,2,0),\"\")","v":"Online"}]
[null,{"$f":"IF(MIDIA!D20=\"\",\"\",MIDIA!D20)","v":""},null,null,null,null,null,null,null,null,null,null,null,null,0,null,null,null,null,null,null,null,null,null,null,null,{"$f":"IFERROR(VLOOKUP(B20,MIDIA!$D$15:$E$30,2,0),\"\")","v":""}]
[null,{"$f":"IF(MIDIA!D21=\"\",\"\",MIDIA!D21)","v":""},null,null,null,null,null,null,null,null,null,null,null,null,0,null,null,null,null,null,null,null,null,null,null,null,{"$f":"IFERROR(VLOOKUP(B21,MIDIA!$D$15:$E$30,2,0),\"\")","v":""}]
[null,{"$f":"IF(MIDIA!D22=\"\",\"\",MIDIA!D22)","v":""},null,null,null,null,null,null,null,null,null,null,null,null,0,null,null,null,null,null,null,null,null,null,null,null,{"$f":"IFERROR(VLOOKUP(B22,MIDIA!$D$15:$E$30,2,0),\"\")","v":""}]
[null,{"$f":"IF(MIDIA!D23=\"\",\"\",MIDIA!D23)","v":""},null,null,null,null,null,null,null,null,null,null,null,null,0,null,null,null,null,null,null,null,null,null,null,null,{"$f":"IFERROR(VLOOKUP(B23,MIDIA!$D$15:$E$30,2,0),\"\")","v":""}]
[null,{"$f":"IF(MIDIA!D24=\"\",\"\",MIDIA!D24)","v":""},null,null,null,null,null,null,null,null,null,null,null,null,0,null,null,null,null,null,null,null,null,null,null,null,{"$f":"IFERROR(VLOOKUP(B24,MIDIA!$D$15:$E$30,2,0),\"\")","v":""}]
[null,{"$f":"IF(MIDIA!D25=\"\",\"\",MIDIA!D25)","v":""},null,null,null,null,null,null,null,null,null,null,null,null,0,null,null,null,null,null,null,null,null,null,null,null,{"$f":"IFERROR(VLOOKUP(B25,MIDIA!$D$15:$E$30,2,0),\"\")","v":""}]
[null,{"$f":"IF(MIDIA!D26=\"\",\"\",MIDIA!D26)","v":""},null,null,null,null,null,null,null,null,null,null,null,null,0,null,null,null,null,null,null,null,null,null,null,null,{"$f":"IFERROR(VLOOKUP(B26,MIDIA!$D$15:$E$30,2,0),\"\")","v":""}]
[null,{"$f":"IF(MIDIA!D27=\"\",\"\",MIDIA!D27)","v":""},null,null,null,null,null,null,null,null,null,null,null,null,0,null,null,null,null,null,null,null,null,null,null,null,{"$f":"IFERROR(VLOOKUP(B27,MIDIA!$D$15:$E$30,2,0),\"\")","v":""}]
[null,{"$f":"IF(MIDIA!D28=\"\",\"\",MIDIA!D28)","v":""},null,null,null,null,null,null,null,null,null,null,null,null,0,null,null,null,null,null,null,null,null,null,null,null,{"$f":"IFERROR(VLOOKUP(B28,MIDIA!$D$15:$E$30,2,0),\"\")","v":""}]
[null,{"$f":"IF(MIDIA!D29=\"\",\"\",MIDIA!D29)","v":""},null,null,null,null,null,null,null,null,null,null,null,null,0,null,null,null,null,null,null,null,null,null,null,null,{"$f":"IFERROR(VLOOKUP(B29,MIDIA!$D$15:$E$30,2,0),\"\")","v":""}]
[null,{"$f":"IF(MIDIA!D30=\"\",\"\",MIDIA!D30)","v":""},null,null,null,null,null,null,null,null,null,null,null,null,0,null,null,null,null,null,null,null,null,null,null,null,{"$f":"IFERROR(VLOOKUP(B30,MIDIA!$D$15:$E$30,2,0),\"\")","v":""}]

{"sheet":"CUSTOS","index":4,"n_rows":30,"n_cols":27,"rows_kept":30,"cut":false,"hidden":false,"merged":[[11,1,11,14]]}
[]
[]
[]
[]
[]
[]
[]
[]
[]
[]
[]
[null,"Promoção - Custos\nInsira os custos realizados para cada mídia cadastrada."]
[]
[null,"Orçamento","Janeiro","Fevereiro","Março","Abril","Maio","Junho","Julho","Agosto","Setembro","Outubro","Novembro","Dezembro","Total"]
[null,{"$f":"IF(MIDIA!D15=\"\",\"\",MIDIA!D15)","v":"Redes Sociais"},50,200,200,200,200,200,200,200,200,200,200,200,{"$f":"SUM(C15:N15)","v":2250},null,null,null,null,null,null,null,null,null,null,null,{"$f":"IFERROR(VLOOKUP(B15,MIDIA!$D$15:$E$30,2,0),\"\")","v":"Online"}]
[null,{"$f":"IF(MIDIA!D16=\"\",\"\",MIDIA!D16)","v":"Revistas"},100,80,120,120,130,140,150,160,170,180,190,200,{"$f":"SUM(C16:N16)","v":1740},null,null,null,null,null,null,null,null,null,null,null,{"$f":"IFERROR(VLOOKUP(B16,MIDIA!$D$15:$E$30,2,0),\"\")","v":"Offline"}]
[null,{"$f":"IF(MIDIA!D17=\"\",\"\",MIDIA!D17)","v":"Jornais"},null,null,null,null,null,null,null,null,null,null,null,null,0,null,null,null,null,null,null,null,null,null,null,null,{"$f":"IFERROR(VLOOKUP(B17,MIDIA!$D$15:$E$30,2,0),\"\")","v":"Offline"}]
[null,{"$f":"IF(MIDIA!D18=\"\",\"\",MIDIA!D18)","v":"Loja Física"},200,200,null,null,null,null,null,null,null,null,null,null,400,null,null,null,null,null,null,null,null,null,null,null,{"$f":"IFERROR(VLOOKUP(B18,MIDIA!$D$15:$E$30,2,0),\"\")","v":"Offline"}]
[null,{"$f":"IF(MIDIA!D19=\"\",\"\",MIDIA!D19)","v":"Site"},100,100,100,100,100,100,100,100,100,100,100,100,1200,null,null,null,null,null,null,null,null,null,null,null,{"$f":"IFERROR(VLOOKUP(B19,MIDIA!$D$15:$E$30,2,0),\"\")","v":"Online"}]
[null,{"$f":"IF(MIDIA!D20=\"\",\"\",MIDIA!D20)","v":""},null,null,null,null,null,null,null,null,null,null,null,null,0,null,null,null,null,null,null,null,null,null,null,null,{"$f":"IFERROR(VLOOKUP(B20,MIDIA!$D$15:$E$30,2,0),\"\")","v":""}]
[null,{"$f":"IF(MIDIA!D21=\"\",\"\",MIDIA!D21)","v":""},null,null,null,null,null,null,null,null,null,null,null,null,0,null,null,null,null,null,null,null,null,null,null,null,{"$f":"IFERROR(VLOOKUP(B21,MIDIA!$D$15:$E$30,2,0),\"\")","v":""}]
[null,{"$f":"IF(MIDIA!D22=\"\",\"\",MIDIA!D22)","v":""},null,null,null,null,null,null,null,null,null,null,null,null,0,null,null,null,null,null,null,null,null,null,null,null,{"$f":"IFERROR(VLOOKUP(B22,MIDIA!$D$15:$E$30,2,0),\"\")","v":""}]
[null,{"$f":"IF(MIDIA!D23=\"\",\"\",MIDIA!D23)","v":""},null,null,null,null,null,null,null,null,null,null,null,null,0,null,null,null,null,null,null,null,null,null,null,null,{"$f":"IFERROR(VLOOKUP(B23,MIDIA!$D$15:$E$30,2,0),\"\")","v":""}]
[null,{"$f":"IF(MIDIA!D24=\"\",\"\",MIDIA!D24)","v":""},null,null,null,null,null,null,null,null,null,null,null,null,0,null,null,null,null,null,null,null,null,null,null,null,{"$f":"IFERROR(VLOOKUP(B24,MIDIA!$D$15:$E$30,2,0),\"\")","v":""}]
[null,{"$f":"IF(MIDIA!D25=\"\",\"\",MIDIA!D25)","v":""},null,null,null,null,null,null,null,null,null,null,null,null,0,null,null,null,null,null,null,null,null,null,null,null,{"$f":"IFERROR(VLOOKUP(B25,MIDIA!$D$15:$E$30,2,0),\"\")","v":""}]
[null,{"$f":"IF(MIDIA!D26=\"\",\"\",MIDIA!D26)","v":""},null,null,null,null,null,null,null,null,null,null,null,null,0,null,null,null,null,null,null,null,null,null,null,null,{"$f":"IFERROR(VLOOKUP(B26,MIDIA!$D$15:$E$30,2,0),\"\")","v":""}]
[null,{"$f":"IF(MIDIA!D27=\"\",\"\",MIDIA!D27)","v":""},null,null,null,null,null,null,null,null,null,null,null,null,0,null,null,null,null,null,null,null,null,null,null,null,{"$f":"IFERROR(VLOOKUP(B27,MIDIA!$D$15:$E$30,2,0),\"\")","v":""}]
[null,{"$f":"IF(MIDIA!D28=\"\",\"\",MIDIA!D28)","v":""},null,null,null,null,null,null,null,null,null,null,null,null,0,null,null,null,null,null,null,null,null,null,null,null,{"$f":"IFERROR(VLOOKUP(B28,MIDIA!$D$15:$E$30,2,0),\"\")","v":""}]
[null,{"$f":"IF(MIDIA!D29=\"\",\"\",MIDIA!D29)","v":""},null,null,null,null,null,null,null,null,null,null,null,null,0,null,null,null,null,null,null,null,null,null,null,null,{"$f":"IFERROR(VLOOKUP(B29,MIDIA!$D$15:$E$30,2,0),\"\")","v":""}]
[null,{"$f":"IF(MIDIA!D30=\"\",\"\",MIDIA!D30)","v":""},null,null,null,null,null,null,null,null,null,null,null,null,0,null,null,null,null,null,null,null,null,null,null,null,{"$f":"IFERROR(VLOOKUP(B30,MIDIA!$D$15:$E$30,2,0),\"\")","v":""}]

{"sheet":"RECEITAS","index":5,"n_rows":30,"n_cols":27,"rows_kept":30,"cut":false,"hidden":false,"merged":[[11,1,11,14]]}
[]
[]
[]
[]
[]
[]
[]
[]
[]
[]
[]
[null,"Promoção - Receitas\nInsira as receitas que obteve para cada mídia cadastrada. Essas receitas são o retorno dos investimentos realizados."]
[]
[null,"Orçamento","Janeiro","Fevereiro","Março","Abril","Maio","Junho","Julho","Agosto","Setembro","Outubro","Novembro","Dezembro","Total"]
[null,{"$f":"IF(MIDIA!D15=\"\",\"\",MIDIA!D15)","v":"Redes Sociais"},1000,1000,1000,1000,1000,1000,1000,1000,1000,1000,1000,1000,{"$f":"SUM(C15:N15)","v":12000},null,null,null,null,null,null,null,null,null,null,null,{"$f":"IFERROR(VLOOKUP(B15,MIDIA!$D$15:$E$30,2,0),\"\")","v":"Online"}]
[null,{"$f":"IF(MIDIA!D16=\"\",\"\",MIDIA!D16)","v":"Revistas"},500,500,500,500,500,500,500,500,500,500,500,500,{"$f":"SUM(C16:N16)","v":6000},null,null,null,null,null,null,null,null,null,null,null,{"$f":"IFERROR(VLOOKUP(B16,MIDIA!$D$15:$E$30,2,0),\"\")","v":"Offline"}]
[null,{"$f":"IF(MIDIA!D17=\"\",\"\",MIDIA!D17)","v":"Jornais"},null,null,null,null,null,null,null,null,null,null,null,null,0,null,null,null,null,null,null,null,null,null,null,null,{"$f":"IFERROR(VLOOKUP(B17,MIDIA!$D$15:$E$30,2,0),\"\")","v":"Offline"}]
[null,{"$f":"IF(MIDIA!D18=\"\",\"\",MIDIA!D18)","v":"Loja Física"},50,50,50,50,50,50,50,50,50,50,50,50,600,null,null,null,null,null,null,null,null,null,null,null,{"$f":"IFERROR(VLOOKUP(B18,MIDIA!$D$15:$E$30,2,0),\"\")","v":"Offline"}]
[null,{"$f":"IF(MIDIA!D19=\"\",\"\",MIDIA!D19)","v":"Site"},300,300,300,300,300,300,300,300,300,300,300,300,3600,null,null,null,null,null,null,null,null,null,null,null,{"$f":"IFERROR(VLOOKUP(B19,MIDIA!$D$15:$E$30,2,0),\"\")","v":"Online"}]
[null,{"$f":"IF(MIDIA!D20=\"\",\"\",MIDIA!D20)","v":""},null,null,null,null,null,null,null,null,null,null,null,null,0,null,null,null,null,null,null,null,null,null,null,null,{"$f":"IFERROR(VLOOKUP(B20,MIDIA!$D$15:$E$30,2,0),\"\")","v":""}]
[null,{"$f":"IF(MIDIA!D21=\"\",\"\",MIDIA!D21)","v":""},null,null,null,null,null,null,null,null,null,null,null,null,0,null,null,null,null,null,null,null,null,null,null,null,{"$f":"IFERROR(VLOOKUP(B21,MIDIA!$D$15:$E$30,2,0),\"\")","v":""}]
[null,{"$f":"IF(MIDIA!D22=\"\",\"\",MIDIA!D22)","v":""},null,null,null,null,null,null,null,null,null,null,null,null,0,null,null,null,null,null,null,null,null,null,null,null,{"$f":"IFERROR(VLOOKUP(B22,MIDIA!$D$15:$E$30,2,0),\"\")","v":""}]
[null,{"$f":"IF(MIDIA!D23=\"\",\"\",MIDIA!D23)","v":""},null,null,null,null,null,null,null,null,null,null,null,null,0,null,null,null,null,null,null,null,null,null,null,null,{"$f":"IFERROR(VLOOKUP(B23,MIDIA!$D$15:$E$30,2,0),\"\")","v":""}]
[null,{"$f":"IF(MIDIA!D24=\"\",\"\",MIDIA!D24)","v":""},null,null,null,null,null,null,null,null,null,null,null,null,0,null,null,null,null,null,null,null,null,null,null,null,{"$f":"IFERROR(VLOOKUP(B24,MIDIA!$D$15:$E$30,2,0),\"\")","v":""}]
[null,{"$f":"IF(MIDIA!D25=\"\",\"\",MIDIA!D25)","v":""},null,null,null,null,null,null,null,null,null,null,null,null,0,null,null,null,null,null,null,null,null,null,null,null,{"$f":"IFERROR(VLOOKUP(B25,MIDIA!$D$15:$E$30,2,0),\"\")","v":""}]
[null,{"$f":"IF(MIDIA!D26=\"\",\"\",MIDIA!D26)","v":""},null,null,null,null,null,null,null,null,null,null,null,null,0,null,null,null,null,null,null,null,null,null,null,null,{"$f":"IFERROR(VLOOKUP(B26,MIDIA!$D$15:$E$30,2,0),\"\")","v":""}]
[null,{"$f":"IF(MIDIA!D27=\"\",\"\",MIDIA!D27)","v":""},null,null,null,null,null,null,null,null,null,null,null,null,0,null,null,null,null,null,null,null,null,null,null,null,{"$f":"IFERROR(VLOOKUP(B27,MIDIA!$D$15:$E$30,2,0),\"\")","v":""}]
[null,{"$f":"IF(MIDIA!D28=\"\",\"\",MIDIA!D28)","v":""},null,null,null,null,null,null,null,null,null,null,null,null,0,null,null,null,null,null,null,null,null,null,null,null,{"$f":"IFERROR(VLOOKUP(B28,MIDIA!$D$15:$E$30,2,0),\"\")","v":""}]
[null,{"$f":"IF(MIDIA!D29=\"\",\"\",MIDIA!D29)","v":""},null,null,null,null,null,null,null,null,null,null,null,null,0,null,null,null,null,null,null,null,null,null,null,null,{"$f":"IFERROR(VLOOKUP(B29,MIDIA!$D$15:$E$30,2,0),\"\")","v":""}]
[null,{"$f":"IF(MIDIA!D30=\"\",\"\",MIDIA!D30)","v":""},null,null,null,null,null,null,null,null,null,null,null,null,0,null,null,null,null,null,null,null,null,null,null,null,{"$f":"IFERROR(VLOOKUP(B30,MIDIA!$D$15:$E$30,2,0),\"\")","v":""}]

{"sheet":"CRONOGRAMA","index":6,"n_rows":31,"n_cols":52,"rows_kept":31,"cut":false,"hidden":false,"merged":[[13,20,13,23],[11,1,11,14],[13,4,13,7],[13,8,13,11],[13,12,13,15],[13,16,13,19],[13,48,13,51],[13,24,13,27],[13,28,13,31],[13,32,13,35],[13,36,13,39],[13,40,13,43],[13,44,13,47]]}
[]
[]
[]
[]
[]
[]
[]
[]
[]
[]
[]
[null,"Cronograma\nInsira as atividades programadas por mídia."]
[]
[null,null,null,null,"Janeiro",null,null,null,"Fevereiro",null,null,null,"Março",null,null,null,"Abril",null,null,null,"Maio",null,null,null,"Junho",null,null,null,"Julho",null,null,null,"Agosto",null,null,null,"Setembro",null,null,null,"Outubro",null,null,null,"Novembro",null,null,null,"Dezembro"]
[null,"Mídia","Orçamento","Duração\n(em semanas)","Semana 1","Semana 2","Semana 3","Semana 4","Semana 5","Semana 6","Semana 7","Semana 8","Semana 9","Semana 10","Semana 11","Semana 12","Semana 13","Semana 14","Semana 15","Semana 16","Semana 17","Semana 18","Semana 19","Semana 20","Semana 21","Semana 22","Semana 23","Semana 24","Semana 25","Semana 26","Semana 27","Semana 28","Semana 29","Semana 30","Semana 31","Semana 32","Semana 33","Semana 34","Semana 35","Semana 36","Semana 37","Semana 38","Semana 39","Semana 40","Semana 41","Semana 42","Semana 43","Semana 44","Semana 45","Semana 46","Semana 47","Semana 48"]
[null,{"$f":"IF(MIDIA!D15=\"\",\"\",MIDIA!D15)","v":"Redes Sociais"},{"$f":"ORÇAMENTO!O15","v":1400},{"$f":"IF(B16=\"\",\"\",COUNTA(E16:AZ16))","v":26},"Programada",null,null,null,"Não Realizada",null,null,null,"Não Realizada",null,"Programada",null,"Não Realizada",null,"Programada",null,"Realizada",null,null,"Programada","Programada","Realizada",null,"Realizada","Realizada",null,null,null,"Programada","Realizada",null,"Não Realizada","Não Realizada",null,"Realizada","Programada","Não Realizada","Realizada","Não Realizada","Não Realizada","Realizada",null,"Não Realizada",null,"Não Realizada",null,null,"Realizada"]
[null,{"$f":"IF(MIDIA!D16=\"\",\"\",MIDIA!D16)","v":"Revistas"},{"$f":"ORÇAMENTO!O16","v":600},{"$f":"IF(B17=\"\",\"\",COUNTA(E17:AZ17))","v":19},"Não Realizada","Realizada","Não Realizada","Programada",null,null,null,null,null,"Realizada",null,"Não Realizada",null,"Não Realizada",null,"Programada",null,"Realizada","Não Realizada",null,"Não Realizada",null,"Não Realizada",null,null,"Não Realizada",null,"Não Realizada",null,null,null,null,null,"Não Realizada",null,null,null,null,null,null,null,"Realizada",null,"Programada",null,"Realizada","Programada"]
[null,{"$f":"IF(MIDIA!D17=\"\",\"\",MIDIA!D17)","v":"Jornais"},{"$f":"ORÇAMENTO!O17","v":360},7,"Realizada","Realizada",null,null,"Não Realizada","Não Realizada",null,null,null,null,null,null,null,null,null,null,null,null,null,null,null,null,null,null,null,null,"Não Realizada",null,null,"Realizada","Programada"]
[null,{"$f":"IF(MIDIA!D18=\"\",\"\",MIDIA!D18)","v":"Loja Física"},{"$f":"ORÇAMENTO!O18","v":3600},2,null,"Realizada",null,null,null,"Programada"]
[null,{"$f":"IF(MIDIA!D19=\"\",\"\",MIDIA!D19)","v":"Site"},{"$f":"ORÇAMENTO!O19","v":1800},0]
[null,{"$f":"IF(MIDIA!D20=\"\",\"\",MIDIA!D20)","v":""},{"$f":"ORÇAMENTO!O20","v":0},""]
[null,{"$f":"IF(MIDIA!D21=\"\",\"\",MIDIA!D21)","v":""},{"$f":"ORÇAMENTO!O21","v":0},""]
[null,{"$f":"IF(MIDIA!D22=\"\",\"\",MIDIA!D22)","v":""},{"$f":"ORÇAMENTO!O22","v":0},"",null,null,null,null,null,null,null,null,null,null,null,null,null,null,null,null,null,null,null,null,null,null,{"$f":"IFERROR(VLOOKUP(B23,MIDIA!$D$15:$E$30,2,0),\"\")","v":""}]
[null,{"$f":"IF(MIDIA!D23=\"\",\"\",MIDIA!D23)","v":""},{"$f":"ORÇAMENTO!O23","v":0},"",null,null,null,null,null,null,null,null,null,null,null,null,null,null,null,null,null,null,null,null,null,null,{"$f":"IFERROR(VLOOKUP(B24,MIDIA!$D$15:$E$30,2,0),\"\")","v":""}]
[null,{"$f":"IF(MIDIA!D24=\"\",\"\",MIDIA!D24)","v":""},{"$f":"ORÇAMENTO!O24","v":0},"",null,null,null,null,null,null,null,null,null,null,null,null,null,null,null,null,null,null,null,null,null,null,{"$f":"IFERROR(VLOOKUP(B25,MIDIA!$D$15:$E$30,2,0),\"\")","v":""}]
[null,{"$f":"IF(MIDIA!D25=\"\",\"\",MIDIA!D25)","v":""},{"$f":"ORÇAMENTO!O25","v":0},"",null,null,null,null,null,null,null,null,null,null,null,null,null,null,null,null,null,null,null,null,null,null,{"$f":"IFERROR(VLOOKUP(B26,MIDIA!$D$15:$E$30,2,0),\"\")","v":""}]
[null,{"$f":"IF(MIDIA!D26=\"\",\"\",MIDIA!D26)","v":""},{"$f":"ORÇAMENTO!O26","v":0},"",null,null,null,null,null,null,null,null,null,null,null,null,null,null,null,null,null,null,null,null,null,null,{"$f":"IFERROR(VLOOKUP(B27,MIDIA!$D$15:$E$30,2,0),\"\")","v":""}]
[null,{"$f":"IF(MIDIA!D27=\"\",\"\",MIDIA!D27)","v":""},{"$f":"ORÇAMENTO!O27","v":0},"",null,null,null,null,null,null,null,null,null,null,null,null,null,null,null,null,null,null,null,null,null,null,{"$f":"IFERROR(VLOOKUP(B28,MIDIA!$D$15:$E$30,2,0),\"\")","v":""}]
[null,{"$f":"IF(MIDIA!D28=\"\",\"\",MIDIA!D28)","v":""},{"$f":"ORÇAMENTO!O28","v":0},"",null,null,null,null,null,null,null,null,null,null,null,null,null,null,null,null,null,null,null,null,null,null,{"$f":"IFERROR(VLOOKUP(B29,MIDIA!$D$15:$E$30,2,0),\"\")","v":""}]
[null,{"$f":"IF(MIDIA!D29=\"\",\"\",MIDIA!D29)","v":""},{"$f":"ORÇAMENTO!O29","v":0},"",null,null,null,null,null,null,null,null,null,null,null,null,null,null,null,null,null,null,null,null,null,null,{"$f":"IFERROR(VLOOKUP(B30,MIDIA!$D$15:$E$30,2,0),\"\")","v":""}]
[null,{"$f":"IF(MIDIA!D30=\"\",\"\",MIDIA!D30)","v":""},{"$f":"ORÇAMENTO!O30","v":0},"",null,null,null,null,null,null,null,null,null,null,null,null,null,null,null,null,null,null,null,null,null,null,{"$f":"IFERROR(VLOOKUP(B31,MIDIA!$D$15:$E$30,2,0),\"\")","v":""}]

{"sheet":"RELAT_MIDIAS","index":7,"n_rows":36,"n_cols":8,"rows_kept":36,"cut":false,"hidden":false,"merged":[]}
[]
[]
[]
[]
[]
[]
[]
[]
[]
[]
[]
[null,"Mídias","Orçamento","Custos","Receitas","% do Orçamento Utilizado","% da Receita em Relação ao Custo","Resultado"]
[null,{"$f":"IF(MIDIA!D15=\"\",\"\",MIDIA!D15)","v":"Redes Sociais"},{"$f":"IF(B13=\"\",\"\",ORÇAMENTO!O15)","v":1400},{"$f":"IF(B13=\"\",\"\",CUSTOS!O15)","v":2250},{"$f":"IF(B13=\"\",\"\",RECEITAS!O15)","v":12000},{"$f":"IF(B13=\"\",\"\",IF(C13=0,\"Não orçado\",IFERROR(IF((D13/C13)>1,1,D13/C13),\"\")))","v":1},{"$f":"IF(B13=\"\",\"\",IF(E13=0,\"Não apurado\",IFERROR(E13/D13,0)))","v":5.333333333333333},{"$f":"IF(B13=\"\",\"\",E13-D13)","v":9750}]
[null,{"$f":"IF(MIDIA!D16=\"\",\"\",MIDIA!D16)","v":"Revistas"},{"$f":"IF(B14=\"\",\"\",ORÇAMENTO!O16)","v":600},{"$f":"IF(B14=\"\",\"\",CUSTOS!O16)","v":1740},{"$f":"IF(B14=\"\",\"\",RECEITAS!O16)","v":6000},{"$f":"IF(B14=\"\",\"\",IF(C14=0,\"Não orçado\",IFERROR(IF((D14/C14)>1,1,D14/C14),\"\")))","v":1},{"$f":"IF(B14=\"\",\"\",IF(E14=0,\"Não apurado\",IFERROR(E14/D14,0)))","v":3.4482758620689653},{"$f":"IF(B14=\"\",\"\",E14-D14)","v":4260}]
[null,{"$f":"IF(MIDIA!D17=\"\",\"\",MIDIA!D17)","v":"Jornais"},{"$f":"IF(B15=\"\",\"\",ORÇAMENTO!O17)","v":360},{"$f":"IF(B15=\"\",\"\",CUSTOS!O17)","v":0},{"$f":"IF(B15=\"\",\"\",RECEITAS!O17)","v":0},0,"Não apurado",0]
[null,{"$f":"IF(MIDIA!D18=\"\",\"\",MIDIA!D18)","v":"Loja Física"},{"$f":"IF(B16=\"\",\"\",ORÇAMENTO!O18)","v":3600},{"$f":"IF(B16=\"\",\"\",CUSTOS!O18)","v":400},{"$f":"IF(B16=\"\",\"\",RECEITAS!O18)","v":600},0.1111111111111111,1.5,200]
[null,{"$f":"IF(MIDIA!D19=\"\",\"\",MIDIA!D19)","v":"Site"},{"$f":"IF(B17=\"\",\"\",ORÇAMENTO!O19)","v":1800},{"$f":"IF(B17=\"\",\"\",CUSTOS!O19)","v":1200},{"$f":"IF(B17=\"\",\"\",RECEITAS!O19)","v":3600},0.66666666666666663,3,2400]
[null,{"$f":"IF(MIDIA!D20=\"\",\"\",MIDIA!D20)","v":""},{"$f":"IF(B18=\"\",\"\",ORÇAMENTO!O20)","v":""},{"$f":"IF(B18=\"\",\"\",CUSTOS!O20)","v":""},{"$f":"IF(B18=\"\",\"\",RECEITAS!O20)","v":""},"","",""]
[null,{"$f":"IF(MIDIA!D21=\"\",\"\",MIDIA!D21)","v":""},{"$f":"IF(B19=\"\",\"\",ORÇAMENTO!O21)","v":""},{"$f":"IF(B19=\"\",\"\",CUSTOS!O21)","v":""},{"$f":"IF(B19=\"\",\"\",RECEITAS!O21)","v":""},"","",""]
[null,{"$f":"IF(MIDIA!D22=\"\",\"\",MIDIA!D22)","v":""},{"$f":"IF(B20=\"\",\"\",ORÇAMENTO!O22)","v":""},{"$f":"IF(B20=\"\",\"\",CUSTOS!O22)","v":""},{"$f":"IF(B20=\"\",\"\",RECEITAS!O22)","v":""},"","",""]
[null,{"$f":"IF(MIDIA!D23=\"\",\"\",MIDIA!D23)","v":""},{"$f":"IF(B21=\"\",\"\",ORÇAMENTO!O23)","v":""},{"$f":"IF(B21=\"\",\"\",CUSTOS!O23)","v":""},{"$f":"IF(B21=\"\",\"\",RECEITAS!O23)","v":""},"","",""]
[null,{"$f":"IF(MIDIA!D24=\"\",\"\",MIDIA!D24)","v":""},{"$f":"IF(B22=\"\",\"\",ORÇAMENTO!O24)","v":""},{"$f":"IF(B22=\"\",\"\",CUSTOS!O24)","v":""},{"$f":"IF(B22=\"\",\"\",RECEITAS!O24)","v":""},"","",""]
[null,{"$f":"IF(MIDIA!D25=\"\",\"\",MIDIA!D25)","v":""},{"$f":"IF(B23=\"\",\"\",ORÇAMENTO!O25)","v":""},{"$f":"IF(B23=\"\",\"\",CUSTOS!O25)","v":""},{"$f":"IF(B23=\"\",\"\",RECEITAS!O25)","v":""},"","",""]
[null,{"$f":"IF(MIDIA!D26=\"\",\"\",MIDIA!D26)","v":""},{"$f":"IF(B24=\"\",\"\",ORÇAMENTO!O26)","v":""},{"$f":"IF(B24=\"\",\"\",CUSTOS!O26)","v":""},{"$f":"IF(B24=\"\",\"\",RECEITAS!O26)","v":""},"","",""]
[null,{"$f":"IF(MIDIA!D27=\"\",\"\",MIDIA!D27)","v":""},{"$f":"IF(B25=\"\",\"\",ORÇAMENTO!O27)","v":""},{"$f":"IF(B25=\"\",\"\",CUSTOS!O27)","v":""},{"$f":"IF(B25=\"\",\"\",RECEITAS!O27)","v":""},"","",""]
[null,{"$f":"IF(MIDIA!D28=\"\",\"\",MIDIA!D28)","v":""},{"$f":"IF(B26=\"\",\"\",ORÇAMENTO!O28)","v":""},{"$f":"IF(B26=\"\",\"\",CUSTOS!O28)","v":""},{"$f":"IF(B26=\"\",\"\",RECEITAS!O28)","v":""},"","",""]
[null,{"$f":"IF(MIDIA!D29=\"\",\"\",MIDIA!D29)","v":""},{"$f":"IF(B27=\"\",\"\",ORÇAMENTO!O29)","v":""},{"$f":"IF(B27=\"\",\"\",CUSTOS!O29)","v":""},{"$f":"IF(B27=\"\",\"\",RECEITAS!O29)","v":""},"","",""]
[null,{"$f":"IF(MIDIA!D30=\"\",\"\",MIDIA!D30)","v":""},{"$f":"IF(B28=\"\",\"\",ORÇAMENTO!O30)","v":""},{"$f":"IF(B28=\"\",\"\",CUSTOS!O30)","v":""},{"$f":"IF(B28=\"\",\"\",RECEITAS!O30)","v":""},"","",""]
[null,"Total",{"$f":"SUM(C13:C28)","v":7760},{"$f":"SUM(D13:D28)","v":5590},22200,{"$f":"IF(C29=0,\"Não orçado\",IFERROR(IF((D29/C29)>1,1,D29/C29),\"\"))","v":0.72036082474226804},{"$f":"IF(E29=0,\"Não apurado\",IFERROR(E29/D29,0))","v":3.9713774597495526},{"$f":"E29-D29","v":16610}]
[]
[null,"Tipo de Mídias","Orçamento","Custos","Receitas","% do Orçamento Utilizado","% da Receita em Relação ao Custo","Resultado"]
[null,{"$f":"IF(MIDIA!B15=\"\",\"\",MIDIA!B15)","v":"Online"},{"$f":"IF(B32=\"\",\"\",SUMIF(ORÇAMENTO!$AA$15:$AA$30,RELAT_MIDIAS!B32,ORÇAMENTO!$O$15:$O$30))","v":3200},{"$f":"IF(B32=\"\",\"\",SUMIF(CUSTOS!$AA$15:$AA$30,RELAT_MIDIAS!B32,CUSTOS!$O$15:$O$30))","v":3450},{"$f":"IF(B32=\"\",\"\",SUMIF(RECEITAS!$AA$15:$AA$30,RELAT_MIDIAS!B32,RECEITAS!$O$15:$O$30))","v":15600},{"$f":"IF(B32=\"\",\"\",IF(C32=0,\"Não orçado\",IFERROR(IF((D32/C32)>1,1,D32/C32),\"\")))","v":1},{"$f":"IF(B32=\"\",\"\",IF(E32=0,\"Não apurado\",IFERROR(E32/D32,0)))","v":4.5217391304347823},{"$f":"IF(B32=\"\",\"\",E32-D32)","v":12150}]
[null,{"$f":"IF(MIDIA!B16=\"\",\"\",MIDIA!B16)","v":"Offline"},{"$f":"IF(B33=\"\",\"\",SUMIF(ORÇAMENTO!$AA$15:$AA$30,RELAT_MIDIAS!B33,ORÇAMENTO!$O$15:$O$30))","v":4560},{"$f":"IF(B33=\"\",\"\",SUMIF(CUSTOS!$AA$15:$AA$30,RELAT_MIDIAS!B33,CUSTOS!$O$15:$O$30))","v":2140},{"$f":"IF(B33=\"\",\"\",SUMIF(RECEITAS!$AA$15:$AA$30,RELAT_MIDIAS!B33,RECEITAS!$O$15:$O$30))","v":6600},{"$f":"IF(B33=\"\",\"\",IF(C33=0,\"Não orçado\",IFERROR(IF((D33/C33)>1,1,D33/C33),\"\")))","v":0.4692982456140351},{"$f":"IF(B33=\"\",\"\",IF(E33=0,\"Não apurado\",IFERROR(E33/D33,0)))","v":3.0841121495327104},{"$f":"IF(B33=\"\",\"\",E33-D33)","v":4460}]
[null,{"$f":"IF(MIDIA!B17=\"\",\"\",MIDIA!B17)","v":""},{"$f":"IF(B34=\"\",\"\",SUMIF(ORÇAMENTO!$AA$15:$AA$30,RELAT_MIDIAS!B34,ORÇAMENTO!$O$15:$O$30))","v":""},{"$f":"IF(B34=\"\",\"\",SUMIF(CUSTOS!$AA$15:$AA$30,RELAT_MIDIAS!B34,CUSTOS!$O$15:$O$30))","v":""},{"$f":"IF(B34=\"\",\"\",SUMIF(RECEITAS!$AA$15:$AA$30,RELAT_MIDIAS!B34,RECEITAS!$O$15:$O$30))","v":""},"","",""]
[null,{"$f":"IF(MIDIA!B18=\"\",\"\",MIDIA!B18)","v":""},{"$f":"IF(B35=\"\",\"\",SUMIF(ORÇAMENTO!$AA$15:$AA$30,RELAT_MIDIAS!B35,ORÇAMENTO!$O$15:$O$30))","v":""},{"$f":"IF(B35=\"\",\"\",SUMIF(CUSTOS!$AA$15:$AA$30,RELAT_MIDIAS!B35,CUSTOS!$O$15:$O$30))","v":""},{"$f":"IF(B35=\"\",\"\",SUMIF(RECEITAS!$AA$15:$AA$30,RELAT_MIDIAS!B35,RECEITAS!$O$15:$O$30))","v":""},"","",""]
[null,{"$f":"IF(MIDIA!B19=\"\",\"\",MIDIA!B19)","v":""},{"$f":"IF(B36=\"\",\"\",SUMIF(ORÇAMENTO!$AA$15:$AA$30,RELAT_MIDIAS!B36,ORÇAMENTO!$O$15:$O$30))","v":""},{"$f":"IF(B36=\"\",\"\",SUMIF(CUSTOS!$AA$15:$AA$30,RELAT_MIDIAS!B36,CUSTOS!$O$15:$O$30))","v":""},{"$f":"IF(B36=\"\",\"\",SUMIF(RECEITAS!$AA$15:$AA$30,RELAT_MIDIAS!B36,RECEITAS!$O$15:$O$30))","v":""},"","",""]

{"sheet":"RELAT_INDIV","index":8,"n_rows":20,"n_cols":15,"rows_kept":20,"cut":false,"hidden":false,"merged":[[11,2,11,3]]}
[]
[]
[]
[]
[]
[]
[]
[]
[]
[]
[]
[null,"Selecione uma mídia:","Revistas"]
[null,null,2,3,4,5,6,7,8,9,10,11,12,13,14]
[null,null,"Janeiro","Fevereiro","Março","Abril","Maio","Junho","Julho","Agosto","Setembro","Outubro","Novembro","Dezembro","Total"]
[null,"Orçamento",{"$f":"IFERROR(VLOOKUP($C12,ORÇAMENTO!$B$15:$O$30,C$13,0),\"\")","v":50},{"$f":"IFERROR(VLOOKUP($C12,ORÇAMENTO!$B$15:$O$30,D$13,0),\"\")","v":50},{"$f":"IFERROR(VLOOKUP($C12,ORÇAMENTO!$B$15:$O$30,E$13,0),\"\")","v":50},{"$f":"IFERROR(VLOOKUP($C12,ORÇAMENTO!$B$15:$O$30,F$13,0),\"\")","v":50},{"$f":"IFERROR(VLOOKUP($C12,ORÇAMENTO!$B$15:$O$30,G$13,0),\"\")","v":50},{"$f":"IFERROR(VLOOKUP($C12,ORÇAMENTO!$B$15:$O$30,H$13,0),\"\")","v":50},{"$f":"IFERROR(VLOOKUP($C12,ORÇAMENTO!$B$15:$O$30,I$13,0),\"\")","v":50},{"$f":"IFERROR(VLOOKUP($C12,ORÇAMENTO!$B$15:$O$30,J$13,0),\"\")","v":50},{"$f":"IFERROR(VLOOKUP($C12,ORÇAMENTO!$B$15:$O$30,K$13,0),\"\")","v":50},{"$f":"IFERROR(VLOOKUP($C12,ORÇAMENTO!$B$15:$O$30,L$13,0),\"\")","v":50},{"$f":"IFERROR(VLOOKUP($C12,ORÇAMENTO!$B$15:$O$30,M$13,0),\"\")","v":50},{"$f":"IFERROR(VLOOKUP($C12,ORÇAMENTO!$B$15:$O$30,N$13,0),\"\")","v":50},{"$f":"SUM(C15:N15)","v":600}]
[null,"Custos",{"$f":"IFERROR(VLOOKUP($C12,CUSTOS!$B$15:$O$30,C$13,0),\"\")","v":100},{"$f":"IFERROR(VLOOKUP($C12,CUSTOS!$B$15:$O$30,D$13,0),\"\")","v":80},{"$f":"IFERROR(VLOOKUP($C12,CUSTOS!$B$15:$O$30,E$13,0),\"\")","v":120},{"$f":"IFERROR(VLOOKUP($C12,CUSTOS!$B$15:$O$30,F$13,0),\"\")","v":120},{"$f":"IFERROR(VLOOKUP($C12,CUSTOS!$B$15:$O$30,G$13,0),\"\")","v":130},{"$f":"IFERROR(VLOOKUP($C12,CUSTOS!$B$15:$O$30,H$13,0),\"\")","v":140},{"$f":"IFERROR(VLOOKUP($C12,CUSTOS!$B$15:$O$30,I$13,0),\"\")","v":150},{"$f":"IFERROR(VLOOKUP($C12,CUSTOS!$B$15:$O$30,J$13,0),\"\")","v":160},{"$f":"IFERROR(VLOOKUP($C12,CUSTOS!$B$15:$O$30,K$13,0),\"\")","v":170},{"$f":"IFERROR(VLOOKUP($C12,CUSTOS!$B$15:$O$30,L$13,0),\"\")","v":180},{"$f":"IFERROR(VLOOKUP($C12,CUSTOS!$B$15:$O$30,M$13,0),\"\")","v":190},{"$f":"IFERROR(VLOOKUP($C12,CUSTOS!$B$15:$O$30,N$13,0),\"\")","v":200},{"$f":"SUM(C16:N16)","v":1740}]
[null,"Receitas",{"$f":"IFERROR(VLOOKUP($C12,RECEITAS!$B$15:$O$30,C$13,0),\"\")","v":500},{"$f":"IFERROR(VLOOKUP($C12,RECEITAS!$B$15:$O$30,D$13,0),\"\")","v":500},{"$f":"IFERROR(VLOOKUP($C12,RECEITAS!$B$15:$O$30,E$13,0),\"\")","v":500},{"$f":"IFERROR(VLOOKUP($C12,RECEITAS!$B$15:$O$30,F$13,0),\"\")","v":500},{"$f":"IFERROR(VLOOKUP($C12,RECEITAS!$B$15:$O$30,G$13,0),\"\")","v":500},{"$f":"IFERROR(VLOOKUP($C12,RECEITAS!$B$15:$O$30,H$13,0),\"\")","v":500},{"$f":"IFERROR(VLOOKUP($C12,RECEITAS!$B$15:$O$30,I$13,0),\"\")","v":500},{"$f":"IFERROR(VLOOKUP($C12,RECEITAS!$B$15:$O$30,J$13,0),\"\")","v":500},{"$f":"IFERROR(VLOOKUP($C12,RECEITAS!$B$15:$O$30,K$13,0),\"\")","v":500},{"$f":"IFERROR(VLOOKUP($C12,RECEITAS!$B$15:$O$30,L$13,0),\"\")","v":500},{"$f":"IFERROR(VLOOKUP($C12,RECEITAS!$B$15:$O$30,M$13,0),\"\")","v":500},{"$f":"IFERROR(VLOOKUP($C12,RECEITAS!$B$15:$O$30,N$13,0),\"\")","v":500},6000]
[null,"% do Orçamento Utilizado",{"$f":"IF(C15=0,\"Não orçado\",IFERROR(IF((C16/C15)>1,1,C16/C15),\"\"))","v":1},{"$f":"IF(D15=0,\"Não orçado\",IFERROR(IF((D16/D15)>1,1,D16/D15),\"\"))","v":1},1,1,1,1,1,1,1,1,1,1,1]
[null,"% da Receita em Relação ao Custo",{"$f":"IF(C17=0,\"Não apurado\",IFERROR(C17/C16,0))","v":5},{"$f":"IF(D17=0,\"Não apurado\",IFERROR(D17/D16,0))","v":6.25},4.166666666666667,4.166666666666667,3.8461538461538463,3.5714285714285716,3.3333333333333335,3.125,2.9411764705882355,2.7777777777777777,2.6315789473684212,2.5,3.4482758620689653]
[null,"Resultado",{"$f":"C17-C16","v":400},{"$f":"D17-D16","v":420},380,380,370,360,350,340,330,320,310,300,4260]

{"sheet":"Dash","index":9,"n_rows":70,"n_cols":15,"rows_kept":70,"cut":false,"hidden":false,"merged":[]}
[]
[]
[]
[]
[]
[]
[]
[]
[]
[]
[]
[]
[]
[]
[]
[]
[]
[]
[]
[]
[]
[]
[]
[]
[]
[]
[]
[]
[]
[]
[]
[]
[]
[]
[]
[]
[]
[null,null,"Janeiro","Fevereiro","Março","Abril","Maio","Junho","Julho","Agosto","Setembro","Outubro","Novembro","Dezembro"]
[null,"Programada",{"$f":"COUNTIF(CRONOGRAMA!$E$16:$H$31,Dash!$B39)","v":2},{"$f":"COUNTIF(CRONOGRAMA!$I$16:$L$31,Dash!$B39)","v":1},{"$f":"COUNTIF(CRONOGRAMA!$M$16:$P$31,Dash!$B39)","v":1},{"$f":"COUNTIF(CRONOGRAMA!$Q$16:$T$31,Dash!$B39)","v":2},{"$f":"COUNTIF(CRONOGRAMA!$U$16:$X$31,Dash!$B39)","v":1},{"$f":"COUNTIF(CRONOGRAMA!$Y$16:$AB$31,Dash!$B39)","v":1},{"$f":"COUNTIF(CRONOGRAMA!$AC$16:$AF$31,Dash!$B39)","v":0},{"$f":"COUNTIF(CRONOGRAMA!$AG$16:$AJ$31,Dash!$B39)","v":2},{"$f":"COUNTIF(CRONOGRAMA!$AK$16:$AN$31,Dash!$B39)","v":1},{"$f":"COUNTIF(CRONOGRAMA!$AO$16:$AR$31,Dash!$B39)","v":0},{"$f":"COUNTIF(CRONOGRAMA!$AS$16:$AV$31,Dash!$B39)","v":1},{"$f":"COUNTIF(CRONOGRAMA!$AW$16:$AZ$31,Dash!$B39)","v":1}]
[null,"Não Realizada",{"$f":"COUNTIF(CRONOGRAMA!$E$16:$H$31,Dash!$B40)","v":2},{"$f":"COUNTIF(CRONOGRAMA!$I$16:$L$31,Dash!$B40)","v":3},{"$f":"COUNTIF(CRONOGRAMA!$M$16:$P$31,Dash!$B40)","v":2},{"$f":"COUNTIF(CRONOGRAMA!$Q$16:$T$31,Dash!$B40)","v":2},{"$f":"COUNTIF(CRONOGRAMA!$U$16:$X$31,Dash!$B40)","v":1},{"$f":"COUNTIF(CRONOGRAMA!$Y$16:$AB$31,Dash!$B40)","v":2},{"$f":"COUNTIF(CRONOGRAMA!$AC$16:$AF$31,Dash!$B40)","v":3},{"$f":"COUNTIF(CRONOGRAMA!$AG$16:$AJ$31,Dash!$B40)","v":1},{"$f":"COUNTIF(CRONOGRAMA!$AK$16:$AN$31,Dash!$B40)","v":2},{"$f":"COUNTIF(CRONOGRAMA!$AO$16:$AR$31,Dash!$B40)","v":3},{"$f":"COUNTIF(CRONOGRAMA!$AS$16:$AV$31,Dash!$B40)","v":1},{"$f":"COUNTIF(CRONOGRAMA!$AW$16:$AZ$31,Dash!$B40)","v":1}]
[null,"Realizada",{"$f":"COUNTIF(CRONOGRAMA!$E$16:$H$31,Dash!$B41)","v":4},{"$f":"COUNTIF(CRONOGRAMA!$I$16:$L$31,Dash!$B41)","v":0},{"$f":"COUNTIF(CRONOGRAMA!$M$16:$P$31,Dash!$B41)","v":1},{"$f":"COUNTIF(CRONOGRAMA!$Q$16:$T$31,Dash!$B41)","v":0},{"$f":"COUNTIF(CRONOGRAMA!$U$16:$X$31,Dash!$B41)","v":2},{"$f":"COUNTIF(CRONOGRAMA!$Y$16:$AB$31,Dash!$B41)","v":2},{"$f":"COUNTIF(CRONOGRAMA!$AC$16:$AF$31,Dash!$B41)","v":1},{"$f":"COUNTIF(CRONOGRAMA!$AG$16:$AJ$31,Dash!$B41)","v":2},{"$f":"COUNTIF(CRONOGRAMA!$AK$16:$AN$31,Dash!$B41)","v":1},{"$f":"COUNTIF(CRONOGRAMA!$AO$16:$AR$31,Dash!$B41)","v":1},{"$f":"COUNTIF(CRONOGRAMA!$AS$16:$AV$31,Dash!$B41)","v":2},{"$f":"COUNTIF(CRONOGRAMA!$AW$16:$AZ$31,Dash!$B41)","v":2}]
[]
[]
[]
[]
[]
[]
[]
[]
[]
[]
[]
[]
[]
[]
[]
[]
[]
[]
[]
[]
[]
[null,"Rótulos de Linha","Soma de Orçamento",null,null,"Rótulos de Linha","Soma de Custos",null,null,"Rótulos de Linha","Soma de Receitas",null,null,"Rótulos de Linha","Soma de Resultado"]
[null,null,0,null,null,null,0,null,null,null,0,null,null,null,0]
[null,"Jornais",360,null,null,"Jornais",0,null,null,"Jornais",0,null,null,"Jornais",0]
[null,"Revistas",600,null,null,"Loja Física",400,null,null,"Loja Física",600,null,null,"Loja Física",200]
[null,"Redes Sociais",1400,null,null,"Site",1200,null,null,"Site",3600,null,null,"Site",2400]
[null,"Site",1800,null,null,"Revistas",1740,null,null,"Revistas",6000,null,null,"Revistas",4260]
[null,"Loja Física",3600,null,null,"Redes Sociais",2250,null,null,"Redes Sociais",12000,null,null,"Redes Sociais",9750]
[null,"Total Geral",7760,null,null,"Total Geral",5590,null,null,"Total Geral",22200,null,null,"Total Geral",16610]

{"sheet":"Instruções","index":10,"n_rows":0,"n_cols":0,"rows_kept":0,"cut":false,"hidden":false,"merged":[]}